bitfinex/quotes_ETHUSD_20260202
["timestamp","ask_amount","ask_price","bid_price","bid_amount"]
[1770037544675,12.99309513,2306.8,2305.4,12.50071372]
[1770037544999,1.29930951,2306.7,2305.6,12.40183642]
[1770037546500,13.28100464,2306.7,2305.5,1.25007137]
[1770037546903,13.28100464,2306.7,2305.6,12.40183642]
[1770037547406,13.28100464,2306.7,2305.7,3.81]
[1770037547609,11.98169513,2306.5,2305.4,3.81]
[1770037547782,11.98169513,2306.5,2305.5,3.81]
[1770037548177,11.98169513,2306.5,2305.1,1.19336936]
[1770037549410,12.39773619,2306.3,2305.1,0.00180728]
[1770037549705,12.39773619,2306.1,2305.1,0.00180728]
[1770037549874,0.909,2306.0,2305.1,0.00180728]
[1770037550074,0.909,2306.0,2305.4,0.001]
[1770037550290,1.29930951,2305.9,2305.4,0.001]
[1770037551707,0.0011,2306.5,2305.4,0.001]
[1770037551906,0.93320147,2306.4,2305.4,11.93817885]
[1770037552108,0.93320147,2306.3,2305.4,11.93817885]
[1770037552294,0.93422954,2306.2,2305.4,11.93817885]
[1770037552494,1.16668568,2306.5,2305.4,11.93817885]
[1770037552682,0.93533988,2306.5,2305.5,13.13099674]
[1770037552889,0.93423988,2306.4,2305.5,13.13099674]
[1770037553099,0.93423988,2306.3,2305.5,13.13099674]
[1770037553294,0.9346817,2306.2,2305.5,13.13099674]
[1770037553489,1.16668568,2306.5,2305.5,13.13099674]
[1770037553699,0.93469013,2306.4,2305.5,13.13099674]
[1770037553904,0.93469013,2306.3,2305.5,13.13099674]
[1770037554115,0.93469013,2306.2,2305.5,13.13099674]
[1770037554301,1.16668568,2306.5,2305.5,13.13099674]
[1770037554485,0.93515269,2306.4,2305.5,11.93717885]
[1770037554690,0.93515269,2306.3,2305.5,11.93717885]
[1770037554909,0.93515269,2306.2,2305.5,11.93717885]
[1770037555109,1.16668568,2306.5,2305.5,11.93717885]
[1770037555307,0.93515345,2306.4,2305.5,11.93717885]
[1770037555611,12.39773619,2306.2,2305.4,0.001]
[1770037555796,13.33288964,2306.1,2305.4,0.001]
[1770037555992,12.39773619,2306.1,2305.4,0.001]
[1770037556295,1.16558568,2306.4,2305.4,11.93817885]
[1770037556610,0.93550089,2306.3,2305.4,11.93817885]
[1770037556807,0.93550089,2306.2,2305.4,11.93817885]
[1770037557002,1.16668568,2306.5,2305.5,13.13099674]
[1770037557198,0.93543547,2306.4,2305.5,13.13099674]
[1770037557400,0.93543547,2306.3,2305.5,13.13099674]
[1770037557618,0.93543547,2306.2,2305.5,13.13099674]
[1770037557818,1.16668568,2306.5,2305.5,13.13099674]
[1770037558016,1.29855426,2306.4,2305.6,1.31319967]
[1770037558218,0.93554117,2306.3,2305.5,11.93717885]
[1770037558395,0.93554117,2306.2,2305.5,11.93717885]
[1770037558591,0.93554117,2306.1,2305.4,0.001]
[1770037558796,1.52859877,2306.4,2305.4,0.001]
[1770037558996,0.93569264,2306.3,2305.4,0.001]
[1770037559196,1.18212178,2306.2,2305.4,11.93817885]
[1770037559425,0.93569264,2306.1,2305.4,11.93817885]
[1770037559623,0.0011,2306.5,2305.5,11.93717885]
[1770037560825,0.0011,2306.5,2305.4,0.001]
[1770037560826,1.16558568,2307.3,2305.9,11.93717885]
[1770037561014,1.16558568,2307.3,2306.1,11.93717885]
[1770037561212,1.16558568,2307.3,2306.1,13.02123163]
[1770037561414,1.16558568,2307.5,2306.3,11.93717885]
[1770037561612,0.0011,2307.8,2306.3,11.93717885]
[1770037561813,0.0011,2307.8,2306.6,0.2335703]
[1770037562018,0.0008032,2307.9,2306.8,11.93717885]
[1770037563233,0.0011,2308.0,2306.9,13.02088425]
[1770037563744,0.0011,2309.0,2307.7,11.93717885]
[1770037563898,0.0011,2309.0,2307.9,11.93717885]
[1770037564939,0.9101,2310.0,2308.1,11.93717885]
[1770037565237,12.39883619,2309.8,2308.2,13.02024327]
[1770037565417,12.39883619,2309.8,2308.3,1.08304295]
[1770037565597,12.39883619,2309.8,2308.4,1.30202218]
[1770037565807,0.0011,2308.9,2308.4,1.30202218]
[1770037566259,12.39883619,2309.8,2308.4,1.30202218]
[1770037566260,0.0011,2309.8,2308.4,13.23920103]
[1770037566636,12.39883619,2309.8,2308.4,1.30202218]
[1770037566942,12.39883619,2309.8,2308.1,11.93717885]
[1770037567142,12.39773619,2309.4,2307.8,11.93717885]
[1770037567351,12.39773619,2309.4,2307.7,1.77384535]
[1770037567545,12.39773619,2309.4,2307.8,1.0832702]
[1770037567744,12.39773619,2309.4,2307.9,1.37109678]
[1770037567924,11.82759208,2309.7,2307.9,12.63707078]
[1770037569360,11.82759208,2309.7,2308.0,13.72025968]
[1770037570135,11.82759208,2309.7,2308.1,3.81]
[1770037570873,11.82759208,2309.7,2308.1,16.44707078]
[1770037571035,0.0011,2309.8,2308.3,12.63707078]
[1770037571234,11.82869208,2309.8,2308.4,1.73560708]
[1770037571650,11.82869208,2309.8,2308.3,3.81]
[1770037571955,11.82869208,2309.8,2307.9,13.7202954]
[1770037572160,11.82759208,2309.6,2307.9,12.63707078]
[1770037572359,11.82759208,2309.6,2307.7,1.59951877]
[1770037572532,11.82759208,2309.6,2307.7,6.49282244]
[1770037572732,11.82759208,2309.6,2307.8,2.34633789]
[1770037574532,11.82759208,2309.6,2307.8,3.42961483]
[1770037574733,11.82759208,2309.6,2307.9,12.63707078]
[1770037575750,11.82759208,2309.6,2308.0,13.72025968]
[1770037576562,0.0011,2309.8,2308.2,12.63707078]
[1770037576763,0.0011,2309.8,2308.4,12.63707078]
[1770037577348,11.82869208,2309.8,2308.4,12.63707078]
[1770037577561,0.0011,2309.4,2308.4,12.63707078]
[1770037579752,0.0011,2309.4,2308.3,1.64470708]
[1770037581455,11.82869208,2309.4,2308.3,1.64470708]
[1770037581659,11.82759208,2309.3,2308.3,1.64470708]
[1770037581862,11.82759208,2309.3,2308.0,1.99218565]
[1770037582039,11.82759208,2309.3,2308.0,14.62925643]
[1770037582238,11.82759208,2309.3,2308.0,13.54607078]
[1770037582461,11.82759208,2309.3,2308.0,14.62925863]
[1770037583166,0.0011,2309.4,2308.0,14.62925863]
[1770037583350,11.82869208,2309.4,2308.1,1.89621632]
[1770037584246,11.82869208,2309.4,2308.0,0.909]
[1770037585181,11.82869208,2309.4,2308.0,0.001]
[1770037585745,11.82869208,2309.4,2308.0,1.0841613]
[1770037587666,11.82869208,2309.4,2308.0,0.001]
[1770037587976,11.82759208,2309.3,2308.0,0.001]
[1770037588162,11.82759208,2309.1,2308.0,0.001]
[1770037589389,11.82759208,2308.9,2308.0,0.001]
[1770037591166,11.82759208,2308.9,2308.2,0.001]
[1770037592091,0.908,2309.1,2308.2,0.001]
[1770037592259,0.93248283,2309.0,2308.2,0.001]
[1770037592589,0.93248283,2308.9,2308.2,0.001]
[1770037592770,12.73559208,2309.1,2308.2,0.001]
[1770037592957,0.93299836,2309.0,2308.2,0.001]
[1770037593161,0.93299836,2308.9,2308.2,0.001]
[1770037593470,12.73559208,2309.1,2308.2,0.001]
[1770037593981,11.82759208,2308.9,2308.2,0.001]
[1770037595288,0.908,2309.1,2308.2,0.001]
[1770037595491,12.76105734,2309.0,2308.2,0.001]
[1770037595789,0.93346526,2308.9,2308.2,0.001]
[1770037595958,12.73559208,2309.1,2308.2,0.001]
[1770037596159,12.76090265,2309.0,2308.2,0.001]
[1770037596359,0.93331057,2308.9,2308.2,0.001]
[1770037596579,12.76090265,2308.9,2308.2,0.001]
[1770037596788,12.76090265,2308.8,2308.2,0.001]
[1770037597001,11.82759208,2308.8,2308.2,0.001]
[1770037599266,13.83328503,2309.1,2308.2,0.001]
[1770037599463,13.85804298,2309.0,2308.2,0.001]
[1770037599767,13.85804298,2308.9,2308.2,0.001]
[1770037600081,12.92528503,2308.9,2308.2,0.001]
[1770037602276,0.908,2309.1,2308.2,0.001]
[1770037602486,0.93263485,2309.0,2308.2,0.001]
[1770037602672,0.93263485,2308.9,2308.2,0.001]
[1770037602875,13.83328503,2309.1,2308.2,0.001]
[1770037603193,0.93257395,2309.0,2308.2,0.001]
[1770037603392,0.93257395,2308.9,2308.2,0.001]
[1770037603593,13.83328503,2309.1,2308.2,0.001]
[1770037603800,0.93231344,2309.0,2308.2,0.001]
[1770037604097,13.83328503,2309.1,2308.2,0.001]
[1770037604297,0.93222301,2309.0,2308.2,0.001]
[1770037604597,13.83328503,2309.1,2308.4,0.001]
[1770037604797,0.0011,2308.9,2308.4,0.001]
[1770037605480,12.92528503,2308.7,2308.0,0.001]
[1770037605797,14.09087071,2308.5,2307.2,0.001]
[1770037605996,1.45678939,2308.7,2307.9,12.5666196]
[1770037606168,0.0011,2308.9,2307.6,12.5666196]
[1770037606591,12.92638503,2308.9,2307.6,12.5666196]
[1770037606776,12.92528503,2308.8,2307.5,3.81]
[1770037606972,12.92528503,2308.8,2307.4,0.0008036]
[1770037609294,12.52235391,2308.6,2307.4,0.0008036]
[1770037609480,12.52235391,2308.4,2307.4,0.0008036]
[1770037609668,0.908,2308.5,2307.4,0.0008036]
[1770037611506,12.52235391,2308.8,2307.4,12.83588341]
[1770037611702,0.908,2308.4,2307.4,12.83588341]
[1770037612704,0.909,2308.6,2307.8,12.83607981]
[1770037614213,0.909,2308.6,2307.8,0.001]
[1770037614376,0.909,2308.6,2307.8,3.811]
[1770037617602,0.909,2308.6,2307.8,0.001]
[1770037618100,0.909,2308.6,2308.0,0.001]
[1770037618308,0.0011,2308.5,2308.0,0.001]
[1770037618510,0.0011,2308.5,2307.8,0.001]
[1770037618511,13.45482321,2308.4,2307.8,0.001]
[1770037618695,0.9324693,2308.3,2307.8,0.001]
[1770037620485,0.0011,2308.5,2307.8,0.001]
[1770037620686,0.93348692,2308.4,2307.8,0.001]
[1770037621004,0.0011,2308.5,2307.8,0.001]
[1770037621200,1.84259888,2308.4,2307.8,0.001]
[1770037621522,0.909,2308.4,2307.8,0.001]
[1770037622519,0.0011,2308.7,2308.0,12.83507981]
[1770037622718,0.0011,2308.7,2308.1,1.66450798]
[1770037622920,0.0011,2309.2,2308.2,12.83507981]
[1770037623725,0.0011,2309.2,2308.1,1.66450798]
[1770037623896,12.52345391,2309.2,2308.1,1.66450798]
[1770037624097,13.45665579,2309.1,2307.8,0.001]
[1770037624406,12.52235391,2308.9,2307.8,0.001]
[1770037624611,1.84330188,2308.8,2307.8,0.001]
[1770037624816,0.93430188,2308.7,2307.8,0.001]
[1770037625027,0.909,2308.8,2307.8,0.001]
[1770037625193,0.93419086,2308.7,2307.8,0.001]
[1770037625398,0.909,2308.8,2307.8,0.001]
[1770037626021,13.43135391,2308.8,2307.8,0.001]
[1770037626238,0.93416568,2308.7,2307.8,0.001]
[1770037626533,13.43135391,2308.8,2307.8,0.001]
[1770037626697,0.93422523,2308.7,2307.8,0.001]
[1770037626898,13.43135391,2308.8,2307.8,0.001]
[1770037627099,0.93425686,2308.7,2307.8,0.001]
[1770037627322,13.43135391,2308.8,2307.8,0.001]
[1770037627641,0.93459878,2308.7,2307.8,0.001]
[1770037627801,0.93459878,2308.6,2307.8,0.001]
[1770037628001,13.43135391,2308.8,2307.8,0.001]
[1770037628239,0.93444807,2308.7,2307.8,0.001]
[1770037628428,0.93444807,2308.6,2307.8,0.001]
[1770037628607,0.93444807,2308.5,2307.8,0.001]
[1770037628815,13.43135391,2308.8,2307.8,0.001]
[1770037629115,0.93427604,2308.7,2307.8,0.001]
[1770037629325,0.93427604,2308.6,2307.9,3.81]
[1770037629631,0.93427604,2308.5,2307.9,3.81]
[1770037629817,13.43135391,2308.8,2307.9,3.81]
[1770037630134,0.93365316,2308.7,2307.9,3.81]
[1770037630336,0.93365316,2308.6,2308.0,0.3811]
[1770037630515,0.93365316,2308.5,2307.9,3.81]
[1770037630831,13.43135391,2308.8,2307.9,3.81]
[1770037631128,0.93336776,2308.7,2307.9,3.81]
[1770037631427,13.43135391,2308.8,2308.0,0.001]
[1770037631428,0.93336776,2308.6,2308.0,0.001]
[1770037631725,0.93336776,2308.5,2308.0,0.001]
[1770037631930,0.0011,2308.7,2308.0,0.3822]
[1770037632108,0.93344329,2308.6,2308.0,0.3822]
[1770037632308,0.93344329,2308.5,2308.0,0.3822]
[1770037632512,0.93344329,2308.6,2308.0,0.3822]
[1770037632821,0.93357589,2308.5,2308.0,0.3822]
[1770037633021,0.0011,2308.7,2308.0,0.3822]
[1770037633222,0.93356648,2308.6,2308.0,0.3822]
[1770037633426,0.93356648,2308.5,2308.0,0.3822]
[1770037633611,12.83620372,2308.4,2307.8,0.001]
[1770037633950,12.83620372,2308.3,2307.4,0.0008036]
[1770037634261,1.84269984,2308.2,2307.4,0.0008036]
[1770037634406,0.909,2308.2,2307.4,0.0008036]
[1770037634606,0.909,2308.2,2307.4,1.71283649]
[1770037635246,0.909,2308.2,2307.4,12.4084324]
[1770037636018,11.90250388,2308.6,2307.4,12.4084324]
[1770037636246,0.93349523,2308.5,2307.4,13.49189422]
[1770037636451,0.0011,2308.7,2307.4,13.49189422]
[1770037636743,0.93361401,2308.6,2307.7,12.4076288]
[1770037636945,0.0011,2308.7,2307.8,1.34910055]
[1770037637107,0.93365127,2308.6,2307.8,1.34910055]
[1770037637309,0.0011,2308.7,2307.8,13.75672935]
[1770037637642,0.0011,2308.9,2307.9,12.4076288]
[1770037637947,0.0011,2308.9,2308.1,12.6411991]
[1770037638238,0.0011,2309.2,2308.2,1.71775579]
[1770037638441,0.0011,2309.2,2308.0,4.53635884]
[1770037638657,0.0011,2309.2,2307.8,1.34910055]
[1770037638658,11.90250388,2309.0,2307.8,1.34910055]
[1770037638947,0.93300757,2309.1,2307.4,0.0008036]
[1770037638948,11.90250388,2308.8,2307.4,0.0008036]
[1770037639237,1.84200757,2308.7,2307.4,0.0008036]
[1770037639440,0.909,2308.7,2307.4,0.0008036]
[1770037639640,12.83555156,2308.6,2307.4,0.0008036]
[1770037639815,0.93304768,2308.5,2307.4,0.0008036]
[1770037640015,11.90250388,2308.6,2307.4,0.0008036]
[1770037640248,0.93303792,2308.5,2307.4,0.0008036]
[1770037640535,11.90250388,2308.6,2307.4,0.0008036]
[1770037640724,0.909,2308.7,2307.4,0.0008036]
[1770037640925,0.93297791,2308.6,2307.4,0.0008036]
[1770037641142,0.909,2308.7,2307.4,0.63364273]
[1770037641338,0.93297959,2308.6,2307.4,13.04127153]
[1770037641544,0.909,2308.7,2307.4,13.04127153]
[1770037641839,0.93368303,2308.6,2307.4,13.04127153]
[1770037642040,0.909,2308.7,2307.4,13.04127153]
[1770037642347,0.93370547,2308.6,2307.5,1.41247891]
[1770037642534,0.909,2308.7,2307.5,13.82010771]
[1770037642737,0.93315291,2308.6,2307.5,14.90352822]
[1770037642957,0.909,2308.7,2307.5,14.90352822]
[1770037643161,0.93315509,2308.6,2307.5,14.90352822]
[1770037643450,0.909,2308.7,2307.6,1.98710448]
[1770037643650,0.93314194,2308.6,2307.6,1.98710448]
[1770037643841,0.909,2308.7,2307.7,3.62735884]
[1770037644020,0.93308838,2308.6,2307.7,3.62735884]
[1770037644218,0.909,2308.7,2307.7,3.62735884]
[1770037644448,0.9329225,2308.6,2307.8,0.56144633]
[1770037644618,0.909,2308.7,2307.8,0.56144633]
[1770037644829,0.9325114,2308.6,2307.8,0.56144633]
[1770037645028,0.909,2308.7,2307.8,0.56144633]
[1770037645233,0.93251509,2308.6,2307.8,0.56144633]
[1770037645518,12.81260388,2308.7,2307.6,3.62835884]
[1770037645827,0.93279172,2308.6,2307.6,3.62835884]
[1770037646028,0.9101,2308.7,2307.6,3.62835884]
[1770037646345,0.93293262,2308.6,2307.6,3.62835884]
[1770037646527,0.9101,2308.7,2307.6,3.62835884]
[1770037646741,0.93272751,2308.6,2307.7,1.71193892]
[1770037646935,12.81260388,2308.7,2307.7,1.71193892]
[1770037647138,0.93270889,2308.6,2307.6,3.62835884]
[1770037647337,12.81260388,2308.7,2307.6,3.62835884]
[1770037647554,0.93270676,2308.6,2307.6,3.62835884]
[1770037647767,12.81260388,2308.7,2307.6,3.62835884]
[1770037648065,0.93268544,2308.6,2307.6,3.62835884]
[1770037648221,12.81260388,2308.7,2307.7,0.36283588]
[1770037648428,0.9325476,2308.6,2307.6,3.62835884]
[1770037648733,0.9325476,2308.5,2307.6,3.62835884]
[1770037649053,11.90250388,2308.6,2307.6,3.62835884]
[1770037649235,0.93288331,2308.5,2307.6,3.62835884]
[1770037649436,11.90250388,2308.6,2307.6,3.62835884]
[1770037649636,0.93329681,2308.5,2307.7,0.36283588]
[1770037649958,0.0011,2308.7,2307.8,3.62735884]
[1770037650251,11.90360388,2308.7,2307.8,3.62735884]
[1770037652324,0.0011,2308.7,2307.8,3.62735884]
[1770037652859,0.0011,2308.7,2307.6,0.001]
[1770037653031,0.0011,2308.7,2307.6,1.77640492]
[1770037655460,0.0011,2308.7,2307.6,15.26740676]
[1770037655652,0.0011,2308.7,2307.6,14.18403372]
[1770037657957,0.0011,2308.7,2307.6,15.26739183]
[1770037658356,0.0011,2308.7,2307.6,14.18403372]
[1770037658669,0.0011,2308.7,2307.7,5.51683701]
[1770037659060,11.86764529,2308.7,2307.8,3.62735884]
[1770037659453,0.0011,2308.7,2307.8,3.62735884]
[1770037661870,0.93371025,2308.6,2307.8,3.62735884]
[1770037662177,0.0011,2308.7,2307.9,0.36273588]
[1770037662374,0.93367388,2308.6,2307.9,0.36273588]
[1770037662577,11.86654529,2308.6,2307.9,0.36273588]
[1770037662879,0.93365117,2308.5,2307.7,3.62735884]
[1770037663049,0.0011,2308.7,2307.7,3.62735884]
[1770037663252,0.93365205,2308.6,2307.7,3.62735884]
[1770037663446,0.0011,2308.7,2307.7,3.62735884]
[1770037663667,0.93389647,2308.6,2307.7,3.62735884]
[1770037663869,0.93389647,2308.5,2307.8,0.36283588]
[1770037664094,11.86764529,2308.7,2307.8,3.99019472]
[1770037664304,12.80042161,2308.6,2307.8,3.99019472]
[1770037664481,11.86654529,2308.6,2307.8,3.99019472]
[1770037664683,11.86654529,2308.6,2307.8,0.36283588]
[1770037666099,0.0011,2308.7,2307.8,13.22761726]
[1770037666303,0.93394721,2308.6,2307.8,13.22761726]
[1770037666461,0.0011,2308.7,2307.8,13.22761726]
[1770037666667,0.93402585,2308.6,2307.8,13.22761726]
[1770037666878,0.0011,2308.7,2307.8,13.22761726]
[1770037667197,0.93402364,2308.6,2307.9,1.68549761]
[1770037667373,0.0011,2308.7,2307.9,1.68549761]
[1770037667877,0.0011,2308.7,2307.9,14.55027899]
[1770037668581,0.0011,2308.7,2307.9,18.17763783]
[1770037671083,0.0011,2308.9,2308.2,12.82196416]
[1770037671398,0.0011,2309.2,2308.4,12.82196416]
[1770037671584,0.0011,2309.2,2308.5,12.82196416]
[1770037672497,0.0011,2309.2,2308.5,13.90490499]
[1770037674273,0.0011,2309.6,2309.0,13.05553446]
[1770037674473,0.0011,2310.0,2309.0,13.05553446]
[1770037674474,0.9091,2310.6,2309.1,3.2961972]
[1770037674720,0.0011,2310.6,2309.4,12.82196416]
[1770037674889,0.0011,2310.6,2309.5,0.2335703]
[1770037675203,0.0011,2310.6,2309.1,16.16274817]
[1770037675204,0.0011,2310.6,2309.7,13.05553446]
[1770037675369,0.0011,2310.6,2309.8,2.30435345]
[1770037675973,0.0011,2310.6,2309.8,15.12631761]
[1770037676573,0.0011,2310.6,2309.8,16.20866036]
[1770037676777,0.0011,2310.6,2309.9,12.82196416]
[1770037677312,0.0011,2310.7,2309.9,12.82196416]
[1770037677511,0.0011,2310.7,2310.0,14.4428302]
[1770037677682,0.0011,2310.9,2310.1,0.2335703]
[1770037677881,0.0011,2310.9,2310.2,12.82196416]
[1770037678109,0.0011,2310.9,2310.3,0.908]
[1770037678304,0.0011,2310.9,2310.3,13.72996416]
[1770037678494,0.0011,2311.1,2310.5,1.08201687]
[1770037678707,0.0011,2311.4,2310.4,15.27698901]
[1770037679299,0.0011,2311.4,2310.6,12.82196416]
[1770037679505,0.0011,2311.4,2310.4,2.45505272]
[1770037679714,0.0011,2311.4,2310.4,2.45504993]
[1770037680019,0.0011,2311.4,2310.5,1.61850141]
[1770037680527,12.96663656,2311.4,2310.5,1.61850141]
[1770037680823,12.96553656,2311.2,2310.0,1.62086604]
[1770037680991,12.96553656,2311.2,2309.8,1.99033833]
[1770037681191,12.96553656,2311.2,2309.8,0.908]
[1770037681621,12.96553656,2311.2,2309.8,1.99034395]
[1770037682126,12.96553656,2311.2,2309.8,0.908]
[1770037682328,12.96553656,2311.2,2309.9,1.37299642]
[1770037684828,0.908,2311.3,2310.0,3.62735884]
[1770037684829,12.96553656,2310.9,2310.0,3.62735884]
[1770037688228,12.96553656,2310.9,2310.1,3.62735884]
[1770037689893,12.96553656,2310.9,2310.2,3.62735884]
[1770037690499,0.0011,2311.0,2310.2,3.62735884]
[1770037690742,0.0011,2311.0,2309.9,12.60527163]
[1770037690899,0.9091,2311.0,2310.1,12.60527163]
[1770037691227,0.0011,2311.0,2310.3,12.60527163]
[1770037691429,0.0011,2311.2,2310.3,12.60527163]
[1770037692024,0.0011,2311.2,2310.0,6.06049667]
[1770037692025,12.83940295,2311.2,2310.0,14.33676826]
[1770037692415,12.83940295,2311.2,2309.8,3.62735884]
[1770037692619,12.83940295,2311.2,2309.7,12.60527163]
[1770037693133,12.83940295,2311.2,2309.5,0.2335703]
[1770037693302,12.83940295,2311.2,2309.7,13.68766123]
[1770037693643,12.83940295,2311.2,2309.5,1.08245955]
[1770037693815,12.83830295,2311.1,2309.6,1.89258562]
[1770037694210,10.56654124,2311.0,2309.6,1.89258562]
[1770037694412,12.83830295,2310.9,2309.1,15.49279363]
[1770037694935,12.83830295,2310.9,2309.2,1.08261176]
[1770037695111,12.83830295,2310.9,2309.1,15.49277212]
[1770037695505,12.83830295,2310.7,2309.1,1.80485139]
[1770037695832,12.83830295,2310.5,2309.1,1.80485139]
[1770037697536,12.83830295,2310.5,2309.1,14.41012302]
[1770037698138,12.83830295,2310.5,2309.8,0.001]
[1770037702656,13.99760353,2310.8,2309.8,0.001]
[1770037702825,0.908,2310.4,2309.8,0.001]
[1770037706445,13.74630295,2310.4,2309.8,0.001]
[1770037708754,13.74630295,2310.4,2309.8,3.62835884]
[1770037710169,13.74630295,2310.4,2309.8,3.62735884]
[1770037710328,13.74630295,2310.4,2309.8,3.54104934]
[1770037710534,13.74630295,2310.4,2310.0,0.001]
[1770037710734,13.74630295,2310.4,2309.5,0.001]
[1770037710930,12.83830295,2310.3,2309.5,0.001]
[1770037711135,12.83830295,2310.3,2309.8,0.001]
[1770037711941,12.83830295,2310.3,2309.5,0.001]
[1770037717143,13.99760353,2310.6,2309.5,12.60627163]
[1770037717372,1.84002979,2310.5,2309.6,3.86]
[1770037717540,13.74630295,2310.5,2309.7,1.64662716]
[1770037717746,12.83830295,2310.3,2309.5,0.001]
[1770037717960,10.37773755,2310.3,2309.5,0.001]
[1770037722168,13.91861648,2310.2,2309.5,0.001]
[1770037722375,12.98520917,2310.2,2309.5,0.001]
[1770037722775,12.98520917,2310.1,2309.5,0.001]
[1770037722960,13.89320917,2310.0,2309.5,0.001]
[1770037723365,13.89320917,2310.0,2309.7,0.001]
[1770037724182,12.98520917,2309.8,2308.8,0.001]
[1770037724356,14.14450975,2309.6,2308.8,0.001]
[1770037724561,12.98520917,2309.4,2308.8,0.001]
[1770037724772,13.91916259,2309.3,2308.8,0.001]
[1770037725077,13.91916259,2309.2,2308.6,0.001]
[1770037725248,1.84195342,2309.1,2308.6,0.001]
[1770037725444,0.908,2309.1,2308.6,0.001]
[1770037726275,1.15930058,2309.6,2308.6,12.86251926]
[1770037726462,1.84002699,2309.5,2308.6,12.86251926]
[1770037726669,0.908,2309.5,2308.6,12.86251926]
[1770037726867,0.908,2309.5,2308.7,1.28635193]
[1770037728956,13.50742468,2309.5,2308.6,0.001]
[1770037729162,13.5306579,2309.4,2308.6,0.001]
[1770037729458,12.59942468,2309.4,2308.6,0.001]
[1770037735603,12.59942468,2309.7,2308.6,0.001]
[1770037735894,0.908,2309.6,2308.8,12.48723772]
[1770037736098,0.0011,2309.2,2308.8,12.48723772]
[1770037736306,0.0011,2309.2,2308.8,0.001]
[1770037738875,0.908,2309.1,2308.8,0.001]
[1770037742716,0.908,2309.1,2308.5,0.001]
[1770037742717,12.59942468,2309.0,2308.5,0.001]
[1770037743211,12.59942468,2309.0,2308.3,0.001]
[1770037743418,12.59942468,2309.0,2307.7,12.48623772]
[1770037743419,12.59942468,2308.8,2307.6,0.001]
[1770037743587,12.59942468,2308.8,2307.9,0.001]
[1770037743812,12.59942468,2308.7,2307.9,0.001]
[1770037744021,0.908,2308.6,2307.9,0.001]
[1770037744548,13.50742468,2308.6,2307.9,0.001]
[1770037744907,0.908,2308.6,2307.9,0.001]
[1770037745229,0.908,2308.6,2307.9,12.48723772]
[1770037745537,0.908,2308.6,2308.0,13.73506149]
[1770037745744,0.908,2308.7,2308.0,13.73506149]
[1770037745912,0.908,2308.7,2308.1,0.001]
[1770037746316,0.0011,2309.2,2308.1,12.48623772]
[1770037746525,0.0011,2309.2,2308.0,1.24882377]
[1770037746526,0.908,2309.1,2308.3,12.48623772]
[1770037746839,0.908,2309.1,2308.4,1.24872377]
[1770037747005,0.908,2309.1,2308.2,0.001]
[1770037747403,0.0011,2309.2,2308.2,12.48723772]
[1770037747638,0.0011,2309.4,2308.4,12.48623772]
[1770037748009,0.0011,2309.4,2308.5,0.001]
[1770037748245,0.0011,2309.4,2308.5,1.24972377]
[1770037748923,12.66941102,2309.4,2308.5,1.24972377]
[1770037749120,0.0011,2309.2,2308.5,0.001]
[1770037750937,0.0011,2309.2,2308.5,12.82719241]
[1770037751436,12.84905112,2310.4,2308.7,12.82619241]
[1770037751437,0.908,2309.7,2308.7,12.82619241]
[1770037752746,0.908,2309.7,2308.7,13.90901735]
[1770037753406,0.0011,2310.1,2308.8,12.82719241]
[1770037753618,0.0011,2310.1,2309.0,12.82619241]
[1770037754247,0.0011,2310.1,2309.1,0.001]
[1770037754470,0.0011,2310.1,2309.1,12.82719241]
[1770037755972,0.0011,2310.1,2309.1,13.90985588]
[1770037756181,0.0011,2310.1,2309.2,14.65026578]
[1770037756673,0.0011,2310.1,2309.3,0.001]
[1770037756972,12.66941102,2310.1,2309.3,0.001]
[1770037757178,12.66831102,2309.9,2308.9,14.21719415]
[1770037757476,12.66831102,2309.9,2309.0,0.001]
[1770037757684,12.66831102,2309.9,2309.0,1.42281941]
[1770037757884,12.66831102,2309.9,2309.0,0.001]
[1770037758045,12.66831102,2309.9,2308.6,12.82619241]
[1770037758046,0.92883969,2309.8,2308.6,12.82619241]
[1770037758251,12.66831102,2309.8,2308.6,12.82619241]
[1770037758784,12.66831102,2309.6,2308.3,12.82719241]
[1770037758960,12.66831102,2309.4,2308.4,0.001]
[1770037759158,14.50498855,2309.3,2308.4,0.001]
[1770037759364,12.66831102,2309.1,2308.3,0.001]
[1770037759698,12.66831102,2309.1,2308.3,0.002]
[1770037759861,13.57631102,2309.3,2308.3,0.002]
[1770037760091,13.59691458,2309.2,2308.3,0.001]
[1770037760271,12.66831102,2309.2,2308.3,0.001]
[1770037762553,0.908,2309.3,2308.3,0.001]
[1770037762554,13.59725023,2309.1,2308.3,0.001]
[1770037762904,12.66831102,2309.1,2308.3,0.002]
[1770037765963,0.908,2309.3,2308.3,12.82819241]
[1770037766283,13.57631102,2309.3,2308.4,5.14281924]
[1770037766498,0.92958918,2309.2,2308.4,3.86]
[1770037766703,12.66831102,2309.2,2308.4,3.86]
[1770037767200,0.908,2309.3,2308.4,3.86]
[1770037767501,13.5977452,2309.2,2308.5,0.001]
[1770037767670,12.66831102,2309.2,2308.5,0.001]
[1770037769903,0.908,2309.3,2308.5,0.001]
[1770037770108,0.908,2309.3,2308.5,12.82719241]
[1770037770307,0.908,2309.2,2308.5,12.82719241]
[1770037770520,0.908,2309.2,2308.5,0.001]
[1770037770687,13.57631102,2309.2,2308.5,0.001]
[1770037772801,12.66831102,2309.0,2308.3,0.001]
[1770037773010,12.66831102,2309.0,2308.4,0.001]
[1770037773701,12.66831102,2309.0,2308.5,0.001]
[1770037774320,0.9091,2309.2,2308.5,0.001]
[1770037774499,0.9299499,2309.1,2308.6,0.001]
[1770037774690,0.9091,2309.2,2308.6,0.001]
[1770037774892,0.92994352,2309.1,2308.6,0.001]
[1770037775093,0.9091,2309.2,2308.6,0.001]
[1770037775328,0.93005996,2309.1,2308.6,0.001]
[1770037775517,0.9091,2309.2,2308.6,0.001]
[1770037775717,0.93007354,2309.1,2308.6,0.001]
[1770037775913,13.57741102,2309.2,2308.6,0.001]
[1770037776213,0.93008364,2309.1,2308.6,0.001]